fUSD/lending_fUSD_20250607
["ID","MTS","AMOUNT","RATE_DAILY","PERIOD"]
[364877013,1749283903771,-607.29,0.00028876,5]
[364877014,1749283903780,-1150.03,0.00028876,5]
[364877015,1749283903789,-647.25,0.00028876,5]
[364877016,1749283903799,-1086.55,0.00028876,5]
[364877017,1749283903808,-1473.87,0.00028876,5]
[364877018,1749283903818,-480.0,0.00028876,5]
[364877019,1749283903828,-191.39999253,0.00028876,5]
[364877020,1749283903838,-7690.81,0.00028876,5]
[364877021,1749283903848,-480.0,0.00028876,5]
[364877022,1749283903857,-1206.45,0.00028876,5]
[364877023,1749283903868,-480.0,0.00028876,5]
[364877024,1749283903877,-594.14,0.00028876,5]
[364877025,1749283903887,-656.54,0.00028876,5]
[364877026,1749283903896,-665.13,0.00028876,5]
[364877027,1749283903906,-509.24,0.00028876,5]
[364877028,1749283903915,-480.0,0.00028876,5]
[364877029,1749283903925,-151.0,0.00028876,7]
[364877030,1749283903935,-867.98,0.00028876,5]
[364877031,1749283903944,-835.03,0.00028876,5]
[364877032,1749283903954,-1091.22,0.00028876,5]
[364877033,1749283903964,-788.44,0.00028876,5]
[364877034,1749283903973,-285.84708235,0.00028876,5]
[364877035,1749283903984,-556.78132379,0.00028876,5]
[364877036,1749283903994,-2181.17,0.00028876,5]
[364877037,1749283904003,-675.89,0.00028876,5]
[364877038,1749283904013,-1342.98,0.00028876,5]
[364877039,1749283904023,-5948.08,0.00028876,5]
[364877040,1749283904032,-748.21,0.00028876,5]
[364877041,1749283904043,-1325.93,0.00028876,5]
[364877042,1749283904054,-6018.65,0.00028876,5]
[364877043,1749283904064,-480.0,0.00028876,5]
[364877044,1749283904074,-480.0,0.00028876,5]
[364877045,1749283904084,-622.41,0.00028876,5]
[364877046,1749283904095,-1345.91,0.00028876,5]
[364877047,1749283904105,-480.0,0.00028876,5]
[364877048,1749283904115,-480.0,0.00028876,5]
[364877049,1749283904125,-965.47,0.00028876,5]
[364877050,1749283904135,-2147.53,0.00028876,2]
[364877051,1749283904146,-480.0,0.00028876,5]
[364877052,1749283904156,-2644.51,0.00028876,5]
[364877053,1749283904166,-2010.42,0.00028876,5]
[364877054,1749283904176,-3264.83,0.00028876,5]
[364877055,1749283904185,-1546.17,0.00028876,5]
[364877056,1749283904195,-480.0,0.00028876,5]
[364877057,1749283904204,-2124.13,0.00028876,5]
[364877058,1749283904214,-480.0,0.00028876,5]
[364877059,1749283904224,-3803.92,0.00028876,5]
[364877060,1749283904234,-1458.57,0.00028876,5]
[364877061,1749283904244,-882.95,0.00028876,5]
[364877062,1749283904254,-6110.32,0.00028876,5]
[364877063,1749283904264,-3035.15,0.00028876,5]
[364877064,1749283904274,-1003.3,0.00028876,5]
[364877065,1749283904285,-480.0,0.00028876,5]
[364877066,1749283904295,-1170.49,0.00028876,5]
[364877067,1749283904305,-3633.12,0.00028876,5]
[364877068,1749283904315,-1000.0,0.00028876,5]
[364877069,1749283904325,-596.66,0.00028876,5]
[364877070,1749283904338,-1513.66,0.00028876,5]
[364877071,1749283904348,-1093.12,0.00028876,5]
[364877072,1749283904358,-814.18,0.00028876,5]
[364877073,1749283904369,-2008.91,0.00028876,5]
[364877074,1749283904379,-495.78,0.00028876,5]
[364877075,1749283904389,-480.0,0.00028876,5]
[364877076,1749283904399,-802.83,0.00028876,5]
[364877077,1749283904411,-2029.78,0.00028876,5]
[364877078,1749283904423,-2623.17,0.00028876,5]
[364877079,1749283904434,-5571.7,0.00028876,5]
[364877080,1749283904444,-480.0,0.00028876,5]
[364877081,1749283904455,-749.45,0.00028876,5]
[364877082,1749283904465,-2770.74,0.00028876,5]
[364877083,1749283904475,-1941.16,0.00028876,5]
[364877084,1749283904486,-855.47,0.00028876,5]
[364877085,1749283904496,-1529.93,0.00028876,5]
[364877086,1749283904506,-734.71,0.00028876,5]
[364877087,1749283904516,-4023.49,0.00028876,5]
[364877088,1749283904526,-480.0,0.00028876,5]
[364877089,1749283904537,-961.409907,0.00028876,7]
[364877090,1749283904548,-961.409907,0.00028876,7]
[364877091,1749283904558,-1675.33,0.00028876,5]
[364877092,1749283904569,-525.98,0.00028876,5]
[364877093,1749283904579,-1753.76,0.00028876,5]
[364877094,1749283904590,-967.54,0.00028876,5]
[364877095,1749283904600,-153.155426,0.00028876,7]
[364877096,1749283904611,-480.0,0.00028876,5]
[364877097,1749283904621,-11876.34,0.00028876,5]
[364877098,1749283904631,-1453.1,0.00028876,5]
[364877099,1749283904643,-480.0,0.00028876,5]
[364877100,1749283904653,-1221.810892,0.00028876,7]
[364877101,1749283904664,-683.94,0.00028876,5]
[364877102,1749283904674,-480.0,0.00028876,5]
[364877103,1749283904684,-1122.69,0.00028876,5]
[364877104,1749283904695,-10865.99,0.00028876,5]
[364877105,1749283904705,-480.0,0.00028876,5]
[364877106,1749283904715,-1221.810892,0.00028876,7]
[364877107,1749283904725,-871.56,0.00028876,5]
[364877108,1749283904735,-1581.96,0.00028876,5]
[364877109,1749283904744,-480.0,0.00028876,5]
[364877110,1749283904753,-480.0,0.00028876,5]
[364877111,1749283904763,-813.01,0.00028876,5]
[364877112,1749283904774,-381.34693556,0.00028876,5]
[364877113,1749283904784,-480.0,0.00028876,5]
[364877114,1749283904794,-2227.22,0.00028876,5]
[364877115,1749283904804,-2000.65,0.00028876,5]
[364877116,1749283904814,-480.0,0.00028876,5]
[364877117,1749283904824,-1731.59,0.00028876,5]
[364877118,1749283904833,-2403.78,0.00028876,5]
[364877119,1749283904844,-1327.04,0.00028876,5]
[364877120,1749283904854,-747.9,0.00028876,5]
[364877121,1749283904864,-480.0,0.00028876,5]
[364877122,1749283904875,-151.0,0.00028876,7]
[364877123,1749283904886,-575.71,0.00028876,5]
[364877124,1749283904897,-480.0,0.00028876,5]
[364877125,1749283904907,-492.12,0.00028876,5]
[364877126,1749283904917,-151.0,0.00028876,7]
[364877127,1749283904927,-480.0,0.00028876,5]
[364877128,1749283904936,-480.0,0.00028876,5]
[364877129,1749283904946,-10000.0,0.00028876,7]
[364877130,1749283904956,-4322.98,0.00028876,5]
[364877131,1749283904966,-518.65,0.00028876,5]
[364877132,1749283904976,-494.08,0.00028876,5]
[364877133,1749283904986,-10000.0,0.00028876,7]
[364877134,1749283904997,-1066.78,0.00028876,5]
[364877135,1749283905007,-1078.23,0.00028876,5]
[364877136,1749283905017,-499.42,0.00028876,5]
[364877137,1749283905030,-697.95,0.00028876,5]
[364877138,1749283905039,-10000.0,0.00028876,7]
[364877139,1749283905050,-957.28,0.00028876,5]
[364877140,1749283905062,-871.81,0.00028876,5]
[364877141,1749283905072,-1569.25,0.00028876,5]
[364877142,1749283905082,-480.0,0.00028876,5]
[364877143,1749283905093,-480.0,0.00028876,5]
[364877144,1749283905103,-757.09,0.00028876,5]
[364877145,1749283905113,-3593.96,0.00028876,5]
[364877146,1749283905124,-869.93,0.00028876,5]
[364877147,1749283905134,-607.22,0.00028876,5]
[364877148,1749283905144,-1281.37,0.00028876,5]
[364877149,1749283905154,-1143.16,0.00028876,5]
[364877150,1749283905163,-480.0,0.00028876,5]
[364877151,1749283905173,-630.74,0.00028876,5]
[364877152,1749283905183,-689.06,0.00028876,5]
[364877153,1749283905192,-1387.38,0.00028876,5]
[364877154,1749283905203,-480.0,0.00028876,5]
[364877155,1749283905213,-2996.31,0.00028876,5]
[364877156,1749283905223,-480.0,0.00028876,5]
[364877157,1749283905233,-161.295383,0.00028876,7]
[364877158,1749283905243,-161.295383,0.00028876,7]
[364877159,1749283905253,-151.0,0.00028876,7]
[364877160,1749283905262,-279.10775981,0.00028884,7]
[364877161,1749283905272,-218.84593086,0.00028884,7]
[364877162,1749283905282,-150.0,0.00028885,7]
[364877163,1749283905292,-150.0,0.00028887,7]
[364877164,1749283905301,-150.0,0.00028892,7]
[364877165,1749283905311,-150.0,0.00028895,2]
[364877166,1749283905320,-150.0,0.000289,7]
[364877167,1749283905330,-6449.08,0.000289,2]
[364877168,1749283905344,-300.0,0.000289,10]
[364877169,1749283905354,-151.0,0.000289,7]
[364877170,1749283905364,-150.0,0.00028906,2]
[364877171,1749283905374,-151.0,0.00028912,26]
[364877172,1749283905383,-150.0,0.00028915,2]
[364877173,1749283905393,-183.47169746,0.00028915,2]
[364877174,1749283905403,-279.10775981,0.00028916,7]
[364877175,1749283905412,-218.84593086,0.00028916,7]
[364877176,1749283905423,-150.0,0.00028928,7]
[364877177,1749283905433,-150.0,0.00028933,2]
[364877178,1749283905443,-150.0,0.00028945,7]
[364877179,1749283905453,-279.10775981,0.00028948,7]
[364877180,1749283905462,-218.84593086,0.00028948,7]
[364877181,1749283905472,-150.0,0.00028952,7]
[364877182,1749283905482,-150.0,0.00028953,7]
[364877183,1749283905492,-1855.77153938,0.00028959,2]
[364877184,1749283905502,-5005.48695,0.00028968,30]
[364877185,1749283905512,-500.0,0.0002897,2]
[364877186,1749283905522,-700.0,0.0002897,2]
[364877187,1749283905531,-700.0,0.0002897,2]
[364877188,1749283905541,-150.0,0.00028971,7]
[364877189,1749283905551,-150.0,0.00028976,2]
[364877190,1749283905562,-279.10775981,0.00028981,7]
[364877191,1749283905572,-218.84593086,0.00028981,7]
[364877192,1749283905582,-150.0,0.00028991,7]
[364877193,1749283905592,-520.63509267,0.00028999,2]
[364877194,1749283905602,-794.82,0.00028999,2]
[364877195,1749283905613,-200.0,0.00029,14]
[364877196,1749283905622,-200.0,0.00029,14]
[364877197,1749283905632,-200.0,0.00029,14]
[364877198,1749283905642,-200.0,0.00029,14]
[364877199,1749283905652,-200.0,0.00029,14]
[364877200,1749283905661,-200.0,0.00029,14]
[364877201,1749283905671,-200.0,0.00029,14]
[364877202,1749283905681,-200.0,0.00029,14]
[364877203,1749283905691,-200.0,0.00029,14]
[364877204,1749283905701,-200.0,0.00029,14]
[364877205,1749283905710,-200.0,0.00029,14]
[364877206,1749283905720,-200.0,0.00029,14]
[364877207,1749283905730,-200.0,0.00029,14]
[364877208,1749283905739,-200.0,0.00029,14]
[364877209,1749283905748,-200.0,0.00029,14]
[364877210,1749283905759,-200.0,0.00029,14]
[364877211,1749283905769,-200.0,0.00029,14]
[364877212,1749283905780,-200.0,0.00029,14]
[364877213,1749283905791,-200.0,0.00029,14]
[364877214,1749283905800,-200.0,0.00029,14]
[364877215,1749283905811,-200.0,0.00029,14]
[364877216,1749283905820,-200.0,0.00029,14]
[364877217,1749283905831,-200.0,0.00029,14]
[364877218,1749283905841,-200.0,0.00029,14]
[364877219,1749283905851,-200.0,0.00029,14]
[364877220,1749283905860,-200.0,0.00029,14]
[364877221,1749283905870,-200.0,0.00029,14]
[364877222,1749283906246,-200.0,0.00029,14]
[364877223,1749283906256,-200.0,0.00029,14]
[364877224,1749283906266,-200.0,0.00029,14]
[364877225,1749283906276,-295.0,0.00029,14]
[364877226,1749283906285,-151.35,0.00029,2]
[364877227,1749283906295,-151.35,0.00029,2]
[364877228,1749283906304,-209.4,0.00029,2]
[364877229,1749283906314,-400.0,0.00029,2]
[364877230,1749283906324,-200.0,0.00029,2]
[364877231,1749283906337,-223.0315306,0.00029,2]
[364877232,1749283906347,-162.380719,0.00029,2]
[364877233,1749283906357,-1037.0,0.00029001,2]
[364877234,1749283906367,-279.10775981,0.00029013,7]
[364877235,1749283906377,-218.84593086,0.00029013,7]
[364877236,1749283906388,-150.0,0.00029014,7]
[364877237,1749283906399,-150.0,0.00029017,7]
[364877238,1749283906412,-150.0,0.00029022,2]
[364877239,1749283906423,-21839.43784908,0.00029023,2]
[364877240,1749283906432,-150.0,0.00029025,7]
[364877241,1749283906443,-150.0,0.00029025,7]
[364877242,1749283906453,-150.0,0.00029025,7]
[364877243,1749283906464,-1000.0,0.00029026,2]
[364877244,1749283906475,-150.0,0.00029026,2]
[364877245,1749283906486,-150.0,0.00029035,7]
[364877246,1749283906496,-150.0,0.00029036,7]
[364877247,1749283906505,-794.82,0.0002904,2]
[364877248,1749283906515,-794.82,0.0002904,2]
[364877249,1749283906525,-794.82,0.0002904,2]
[364877250,1749283906535,-794.82,0.0002904,2]
[364877251,1749283906546,-794.98,0.0002904,2]
[364877252,1749283906555,-326.52672753,0.0002904,10]
[364877253,1749283906565,-300.0,0.0002904,10]
[364877254,1749283906576,-480.0,0.00029041,5]
[364877255,1749283906586,-631.92,0.00029041,5]
[364877256,1749283906596,-480.0,0.00029041,5]
[364877257,1749283906606,-163.91528721,0.00029041,5]
[364877258,1749283906615,-480.0,0.00029041,5]
[364877259,1749283906626,-642.32,0.00029041,5]
[364877260,1749283906637,-1416.8,0.00029041,5]
[364877261,1749283906647,-480.0,0.00029041,5]
[364877262,1749283906657,-480.0,0.00029041,5]
[364877263,1749283906667,-480.0,0.00029041,5]
[364877264,1749283906678,-151.0,0.00029041,7]
[364877265,1749283906688,-151.0,0.00029041,7]
[364877266,1749283906698,-151.0,0.00029041,7]
[364877267,1749283906707,-151.0,0.00029041,7]
[364877268,1749283906717,-232.622616,0.00029041,7]
[364877269,1749283906727,-722.44,0.00029041,5]
[364877270,1749283906736,-658.72,0.00029041,5]
[364877271,1749283906746,-151.0,0.00029041,7]
[364877272,1749283906756,-480.0,0.00029041,5]
[364877273,1749283906766,-480.0,0.00029041,5]
[364877274,1749283906776,-514.07,0.00029041,5]
[364877275,1749283906785,-480.0,0.00029041,5]
[364877276,1749283906796,-480.0,0.00029041,5]
[364877277,1749283906806,-202.3884,0.00029041,7]
[364877278,1749283906815,-202.3884,0.00029041,7]
[364877279,1749283906826,-1423.16,0.00029041,5]
[364877280,1749283906836,-1954.69,0.00029041,5]
[364877281,1749283906845,-151.0,0.00029041,7]
[364877282,1749283906856,-667.336566,0.00029041,7]
[364877283,1749283906866,-667.336566,0.00029041,7]
[364877284,1749283906876,-151.0,0.00029041,7]
[364877285,1749283906886,-624.11,0.00029041,5]
[364877286,1749283906897,-151.0,0.00029041,7]
[364877287,1749283906907,-480.0,0.00029041,5]
[364877288,1749283906917,-480.0,0.00029041,5]
[364877289,1749283906927,-151.0,0.00029041,7]
[364877290,1749283906937,-480.0,0.00029041,5]
[364877291,1749283906947,-618.47,0.00029041,5]
[364877292,1749283906957,-1137.84,0.00029041,5]
[364877293,1749283906967,-151.0,0.00029041,7]
[364877294,1749283906977,-1163.74,0.00029041,5]
[364877295,1749283906987,-151.0,0.00029041,7]
[364877296,1749283906998,-480.0,0.00029041,5]
[364877297,1749283907008,-480.0,0.00029041,5]
[364877298,1749283907018,-807.84,0.00029041,5]
[364877299,1749283907028,-1323.94,0.00029041,5]
[364877300,1749283907038,-202.374025,0.00029041,7]
[364877301,1749283907047,-480.0,0.00029041,5]
[364877302,1749283907059,-480.0,0.00029041,5]
[364877303,1749283907069,-202.374025,0.00029041,7]
[364877304,1749283907078,-196.712187,0.00029041,7]
[364877305,1749283907088,-722.49,0.00029041,5]
[364877306,1749283907098,-1321.048037,0.00029041,7]
[364877307,1749283907108,-196.712187,0.00029041,7]
[364877308,1749283907118,-1321.048037,0.00029041,7]
[364877309,1749283907128,-151.0,0.00029041,7]
[364877310,1749283907138,-480.0,0.00029041,5]
[364877311,1749283907149,-1046.98,0.00029041,5]
[364877312,1749283907159,-379.91555424,0.00029041,5]
[364877313,1749283907170,-151.0,0.00029041,7]
[364877314,1749283907179,-151.0,0.00029041,7]
[364877315,1749283907189,-713.0,0.00029041,5]
[364877316,1749283907199,-548.11,0.00029041,5]
[364877317,1749283907210,-882.53,0.00029041,5]
[364877318,1749283907220,-480.0,0.00029041,5]
[364877319,1749283907230,-736.64,0.00029041,5]
[364877320,1749283907240,-151.0,0.00029041,7]
[364877321,1749283907250,-658.07,0.00029041,5]
[364877322,1749283907260,-151.0,0.00029041,7]
[364877323,1749283907270,-676.89,0.00029041,5]
[364877324,1749283907280,-151.0,0.00029041,7]
[364877325,1749283907289,-611.81,0.00029041,5]
[364877326,1749283907299,-903.48,0.00029041,5]
[364877327,1749283907309,-545.14,0.00029041,5]
[364877328,1749283907319,-151.0,0.00029041,7]
[364877329,1749283907330,-1030.91,0.00029041,5]
[364877330,1749283907344,-151.0,0.00029041,7]
[364877331,1749283907354,-151.0,0.00029041,7]
[364877332,1749283907365,-480.0,0.00029041,5]
[364877333,1749283907375,-480.0,0.00029041,5]
[364877334,1749283907386,-1787.253615,0.00029041,5]
[364877335,1749283907396,-480.0,0.00029041,5]
[364877336,1749283907407,-652.14,0.00029041,5]
[364877337,1749283907417,-1026.76,0.00029041,5]
[364877338,1749283907428,-573.4,0.00029041,5]
[364877339,1749283907439,-873.46,0.00029041,5]
[364877340,1749283907449,-480.0,0.00029041,5]
[364877341,1749283907459,-787.2,0.00029041,5]
[364877342,1749283907468,-1212.38,0.00029041,5]
[364877343,1749283907479,-2102.121321,0.00029041,5]
[364877344,1749283907489,-480.0,0.00029041,5]
[364877345,1749283907499,-480.0,0.00029041,5]
[364877346,1749283907509,-480.0,0.00029041,5]
[364877347,1749283907519,-1461.748382,0.00029041,7]
[364877348,1749283907529,-1461.748382,0.00029041,7]
[364877349,1749283907539,-1174.57,0.00029041,5]
[364877350,1749283907550,-850.33,0.00029041,5]
[364877351,1749283907561,-554.27,0.00029041,5]
[364877352,1749283907572,-737.61,0.00029041,5]
[364877353,1749283907583,-494.24,0.00029041,5]
[364877354,1749283907593,-634.26,0.00029041,5]
[364877355,1749283907603,-835.68,0.00029041,5]
[364877356,1749283907614,-768.49,0.00029041,5]
[364877357,1749283907624,-480.0,0.00029041,5]
[364877358,1749283907634,-528.15,0.00029041,5]
[364877359,1749283907644,-480.0,0.00029041,5]
[364877360,1749283907655,-528.45576274,0.00029041,5]
[364877361,1749283907665,-248.105687,0.00029041,7]
[364877362,1749283907675,-1115.25,0.00029041,5]
[364877363,1749283907684,-248.105687,0.00029041,7]
[364877364,1749283907694,-480.0,0.00029041,5]
[364877365,1749283907704,-958.247097,0.00029041,7]
[364877366,1749283907714,-2016.63,0.00029041,5]
[364877367,1749283907724,-958.247097,0.00029041,7]
[364877368,1749283907735,-480.0,0.00029041,5]
[364877369,1749283907745,-480.0,0.00029041,5]
[364877370,1749283907755,-480.0,0.00029041,5]
[364877371,1749283907765,-151.0,0.00029041,7]
[364877372,1749283907775,-984.78,0.00029041,5]
[364877373,1749283907784,-480.0,0.00029041,5]
[364877374,1749283907793,-156.900628,0.00029041,7]
[364877375,1749283907803,-480.0,0.00029041,5]
[364877376,1749283907814,-1642.080816,0.00029041,7]
[364877377,1749283907823,-550.27673307,0.00029041,5]
[364877378,1749283907834,-956.19,0.00029041,5]
[364877379,1749283907844,-1642.080816,0.00029041,7]
[364877380,1749283907854,-485.39,0.00029041,5]
[364877381,1749283907864,-601.8,0.00029041,5]
[364877382,1749283907873,-798.33,0.00029041,5]
[364877383,1749283907883,-658.43,0.00029041,5]
[364877384,1749283907894,-984.27,0.00029041,5]
[364877385,1749283907904,-853.62,0.00029041,5]
[364877386,1749283907914,-480.0,0.00029041,5]
[364877387,1749283907923,-480.0,0.00029041,5]
[364877388,1749283907933,-1719.89,0.00029041,5]
[364877389,1749283907943,-879.54,0.00029041,5]
[364877390,1749283907953,-990.87,0.00029041,5]
[364877391,1749283907964,-769.25,0.00029041,5]
[364877392,1749283907974,-487.77057347,0.00029041,5]
[364877393,1749283907984,-619.63,0.00029041,5]
[364877394,1749283907994,-964.13,0.00029041,5]
[364877395,1749283908004,-614.65,0.00029041,5]
[364877396,1749283908013,-480.0,0.00029041,5]
[364877397,1749283908024,-620.08,0.00029041,5]
[364877398,1749283908034,-959.52,0.00029041,5]
[364877399,1749283908043,-481.61,0.00029041,5]
[364877400,1749283908056,-607.29,0.00029041,5]
[364877401,1749283908067,-1150.03,0.00029041,5]
[364877402,1749283908077,-647.25,0.00029041,5]
[364877403,1749283908087,-1086.55,0.00029041,5]
[364877404,1749283908098,-155.562117,0.00029041,7]
[364877405,1749283908109,-155.562117,0.00029041,7]
[364877406,1749283908119,-1473.87,0.00029041,5]
[364877407,1749283908130,-480.0,0.00029041,5]
[364877408,1749283908140,-7690.81,0.00029041,5]
[364877409,1749283908153,-480.0,0.00029041,5]
[364877410,1749283908163,-1206.45,0.00029041,5]
[364877411,1749283908173,-480.0,0.00029041,5]
[364877412,1749283908183,-594.14,0.00029041,5]
[364877413,1749283908194,-656.54,0.00029041,5]
[364877414,1749283908204,-665.13,0.00029041,5]
[364877415,1749283908214,-509.24,0.00029041,5]
[364877416,1749283908224,-480.0,0.00029041,5]
[364877417,1749283908234,-867.98,0.00029041,5]
[364877418,1749283908244,-835.03,0.00029041,5]
[364877419,1749283908254,-1091.22,0.00029041,5]
[364877420,1749283908264,-788.44,0.00029041,5]
[364877421,1749283908274,-2181.17,0.00029041,5]
[364877422,1749283908283,-675.89,0.00029041,5]
[364877423,1749283908294,-1342.98,0.00029041,5]
[364877424,1749283908303,-5948.08,0.00029041,5]
[364877425,1749283908314,-748.21,0.00029041,5]
[364877426,1749283908325,-1325.93,0.00029041,5]
[364877427,1749283908336,-6018.65,0.00029041,5]
[364877428,1749283908347,-300.11258562,0.00029041,5]
[364877429,1749283908357,-480.0,0.00029041,5]
[364877430,1749283908368,-622.41,0.00029041,5]
[364877431,1749283908378,-1345.91,0.00029041,5]
[364877432,1749283908391,-480.0,0.00029041,5]
[364877433,1749283908401,-496.92867027,0.00029041,5]
[364877434,1749283908412,-965.47,0.00029041,5]
[364877435,1749283908423,-2147.53,0.00029041,2]
[364877436,1749283908433,-480.0,0.00029041,5]
[364877437,1749283908443,-2644.51,0.00029041,5]
[364877438,1749283908453,-2010.42,0.00029041,5]
[364877439,1749283908463,-3264.83,0.00029041,5]
[364877440,1749283908473,-1546.17,0.00029041,5]
[364877441,1749283908483,-480.0,0.00029041,5]
[364877442,1749283908494,-2124.13,0.00029041,5]
[364877443,1749283908505,-480.0,0.00029041,5]
[364877444,1749283908515,-3803.92,0.00029041,5]
[364877445,1749283908526,-1458.57,0.00029041,5]
[364877446,1749283908535,-882.95,0.00029041,5]
[364877447,1749283908545,-6110.32,0.00029041,5]
[364877448,1749283908556,-3035.15,0.00029041,5]
[364877449,1749283908566,-1003.3,0.00029041,5]
[364877450,1749283908576,-480.0,0.00029041,5]
[364877451,1749283908586,-1170.49,0.00029041,5]
[364877452,1749283908596,-3633.12,0.00029041,5]
[364877453,1749283908606,-1093.35331347,0.00029041,5]
[364877454,1749283908617,-596.66,0.00029041,5]
[364877455,1749283908627,-1513.66,0.00029041,5]
[364877456,1749283908638,-1093.12,0.00029041,5]
[364877457,1749283908649,-814.18,0.00029041,5]
[364877458,1749283908660,-2008.91,0.00029041,5]
[364877459,1749283908671,-495.78,0.00029041,5]
[364877460,1749283908681,-510.86904215,0.00029041,5]
[364877461,1749283908691,-802.83,0.00029041,5]
[364877462,1749283908703,-2029.78,0.00029041,5]
[364877463,1749283908713,-2623.17,0.00029041,5]
[364877464,1749283908724,-5571.7,0.00029041,5]
[364877465,1749283908819,-480.0,0.00029041,5]
[364877466,1749283908829,-749.45,0.00029041,5]
[364877467,1749283908840,-2770.74,0.00029041,5]
[364877468,1749283908849,-1941.16,0.00029041,5]
[364877469,1749283908859,-855.47,0.00029041,5]
[364877470,1749283908869,-1529.93,0.00029041,5]
[364877471,1749283908879,-734.71,0.00029041,5]
[364877472,1749283908889,-4023.49,0.00029041,5]
[364877473,1749283908899,-480.0,0.00029041,5]
[364877474,1749283908909,-1675.33,0.00029041,5]
[364877475,1749283908920,-525.98,0.00029041,5]
[364877476,1749283908930,-1753.76,0.00029041,5]
[364877477,1749283908939,-967.54,0.00029041,5]
[364877478,1749283908949,-480.0,0.00029041,5]
[364877479,1749283908959,-11876.34,0.00029041,5]
[364877480,1749283908969,-1453.1,0.00029041,5]
[364877481,1749283908978,-480.0,0.00029041,5]
[364877482,1749283908987,-683.94,0.00029041,5]
[364877483,1749283908997,-518.64110296,0.00029041,5]
[364877484,1749283909006,-1122.69,0.00029041,5]
[364877485,1749283909017,-10865.99,0.00029041,5]
[364877486,1749283909026,-480.0,0.00029041,5]
[364877487,1749283909036,-871.56,0.00029041,5]
[364877488,1749283909047,-1581.96,0.00029041,5]
[364877489,1749283909057,-480.0,0.00029041,5]
[364877490,1749283909067,-480.0,0.00029041,5]
[364877491,1749283909077,-813.01,0.00029041,5]
[364877492,1749283909087,-487.67269586,0.00029041,5]
[364877493,1749283909096,-2227.22,0.00029041,5]
[364877494,1749283909106,-2000.65,0.00029041,5]
[364877495,1749283909116,-480.0,0.00029041,5]
[364877496,1749283909126,-1731.59,0.00029041,5]
[364877497,1749283909136,-2403.78,0.00029041,5]
[364877498,1749283909146,-1327.04,0.00029041,5]
[364877499,1749283909155,-747.9,0.00029041,5]
[364877500,1749283909165,-480.0,0.00029041,5]
[364877501,1749283909174,-575.71,0.00029041,5]
[364877502,1749283909184,-480.0,0.00029041,5]
[364877503,1749283909193,-492.12,0.00029041,5]
[364877504,1749283909203,-480.0,0.00029041,5]
[364877505,1749283909213,-343.84353612,0.00029041,5]
[364877506,1749283909222,-4322.98,0.00029041,5]
[364877507,1749283909231,-518.65,0.00029041,5]
[364877508,1749283909241,-494.08,0.00029041,5]
[364877509,1749283909251,-1470.829381,0.00029041,7]
[364877510,1749283909261,-1066.78,0.00029041,5]
[364877511,1749283909271,-1078.23,0.00029041,5]
[364877512,1749283909280,-1470.829381,0.00029041,7]